bitfinex/quotes_SOLUSD_20250601
["timestamp","ask_amount","ask_price","bid_price","bid_amount"]
[1748797929027,19.74313241,155.84,155.81,18.64964886]
[1748797929257,19.74313241,155.85,155.81,58.48964886]
[1748797929634,19.74313241,155.84,155.82,6.4176614]
[1748797930634,19.74313241,155.83,155.82,6.4176614]
[1748797932539,19.74313241,155.84,155.82,6.4176614]
[1748797932851,19.74313241,155.84,155.82,22.46181491]
[1748797934164,19.74313241,155.87,155.83,18.64964886]
[1748797934461,19.74313241,155.89,155.85,38.39278127]
[1748797934669,19.74313241,155.91,155.87,38.39278127]
[1748797934840,18.68265846,155.94,155.87,38.39278127]
[1748797934841,18.68265846,155.94,155.88,18.64964886]
[1748797935040,19.74313241,155.93,155.88,38.39278127]
[1748797935663,12.16295846,155.94,155.88,38.39278127]
[1748797936057,31.90609087,155.94,155.9,19.74313241]
[1748797936448,19.74313241,155.93,155.91,6.41395676]
[1748797937251,31.90609087,155.94,155.91,6.41395676]
[1748797937769,19.74313241,155.93,155.91,6.41395676]
[1748797937957,19.74313241,155.92,155.91,6.41395676]
[1748797938279,19.74313241,155.92,155.88,6.41519117]
[1748797938458,19.74313241,155.89,155.88,6.41519117]
[1748797938662,19.74313241,155.9,155.88,6.41519117]
[1748797939063,19.74313241,155.92,155.88,22.4531691]
[1748797940248,19.74313241,155.92,155.88,42.19630151]
[1748797940873,19.74313241,155.93,155.88,42.19630151]
[1748797942169,19.74313241,155.93,155.9,6.41436818]
[1748797942373,19.74313241,155.92,155.9,6.41436818]
[1748797943876,19.74313241,155.93,155.89,22.45172878]
[1748797947177,19.74313241,155.92,155.89,22.45172878]
[1748797949172,19.74313241,155.92,155.89,16.03694913]
[1748797951988,19.74313241,155.93,155.89,16.03694913]
[1748797952664,19.74313241,155.93,155.89,22.45172878]
[1748797954669,19.74313241,155.91,155.87,25.0652516]
[1748797954869,19.74313241,155.91,155.88,39.8]
[1748797956170,19.74313241,155.91,155.89,6.41477965]
[1748797956585,19.74313241,155.9,155.89,6.41477965]
[1748797957258,19.74313241,155.9,155.89,26.0]
[1748797957464,19.74313241,155.9,155.87,6.41560274]
[1748797957679,19.74313241,155.88,155.87,6.41560274]
[1748797959089,19.74313241,155.89,155.87,6.41560274]
[1748797959395,19.74313241,155.88,155.85,22.45749117]
[1748797959964,148.9,155.91,155.85,22.45749117]
[1748797959965,19.74313241,155.86,155.85,6.41642605]
[1748797960181,19.74313241,155.87,155.85,6.41642605]
[1748797960589,148.9,155.91,155.85,6.41642605]
[1748797960798,19.74313241,155.87,155.85,6.41642605]
[1748797961900,19.74313241,155.87,155.84,22.45890576]
[1748797971495,19.74313241,155.86,155.84,22.45890576]
[1748797973206,19.74313241,155.85,155.83,6.41713316]
[1748797973501,19.74313241,155.84,155.83,6.41713316]
[1748797973879,19.74313241,155.84,155.82,32.41750764]
[1748797974082,19.74313241,155.83,155.82,32.41750764]
[1748797974477,19.74313241,155.83,155.82,6.41750764]
[1748797975903,19.74313241,155.83,155.81,6.41807329]
[1748797976089,19.74313241,155.82,155.81,6.41807329]
[1748797978417,19.74313241,155.82,155.77,51.83988873]
[1748797978418,19.74313241,155.82,155.76,6.42013353]
[1748797978715,19.74313241,155.81,155.77,26.0]
[1748797978889,19.74313241,155.82,155.78,19.74313241]
[1748797979096,168.64313241,155.83,155.78,19.74313241]
[1748797979311,168.64313241,155.83,155.78,45.74313241]
[1748797979510,148.9,155.83,155.79,19.74313241]
[1748797979826,148.9,155.83,155.79,59.54313241]
[1748797980120,148.9,155.83,155.8,19.74313241]
[1748797980699,148.9,155.83,155.81,6.41807329]
[1748797981209,19.74313241,155.84,155.81,6.41807329]
[1748797981419,19.74313241,155.82,155.78,26.0]
[1748797981620,19.74313241,155.84,155.78,32.41926107]
[1748797981796,19.74313241,155.79,155.78,32.41926107]
[1748797982000,19.74313241,155.79,155.78,6.41926107]
[1748797982415,19.74313241,155.79,155.78,32.41926107]
[1748797983618,19.74313241,155.79,155.78,26.0]
[1748797984015,19.74313241,155.79,155.78,32.41930928]
[1748797984816,19.74313241,155.79,155.76,6.4198065]
[1748797985004,19.74313241,155.77,155.76,6.4198065]
[1748797986520,19.74313241,155.77,155.75,49.86578798]
[1748797986714,19.74313241,155.76,155.75,49.86578798]
[1748797987420,19.74313241,155.76,155.75,17.44527895]
[1748797987617,19.74313241,155.76,155.75,23.86582469]
[1748797987992,150.48,155.8,155.75,23.86582469]
[1748797988216,19.74313241,155.76,155.75,23.86582469]
[1748797991207,19.74313241,155.76,155.75,17.44527895]
[1748797992309,21.74313241,155.76,155.75,17.44527895]
[1748797992703,2.0,155.76,155.75,23.86582469]
[1748797992911,21.74313241,155.76,155.75,23.86582469]
[1748797993427,21.74313241,155.76,155.75,17.44527895]
[1748797994006,21.74313241,155.76,155.75,23.86582469]
[1748797994998,21.74313241,155.76,155.75,17.44527895]
[1748797995620,21.74313241,155.76,155.75,23.86582469]
[1748797997914,19.74313241,155.78,155.75,23.86582469]
[1748797998617,148.9,155.79,155.75,23.86582469]
[1748797998618,148.9,155.79,155.75,59.66032146]
[1748797999816,148.9,155.79,155.76,59.54313241]
[1748797999817,150.9,155.79,155.76,59.54313241]
[1748798000514,2.0,155.79,155.76,59.54313241]
[1748798000726,2.0,155.79,155.77,64.39278127]
[1748798000922,19.74313241,155.8,155.77,26.0]
[1748798001141,19.74313241,155.81,155.77,45.74313241]
[1748798001829,19.74313241,155.81,155.78,6.41930928]
[1748798002343,19.74313241,155.8,155.78,6.41930928]
[1748798003534,19.74313241,155.81,155.78,6.41930928]
[1748798004113,19.74313241,155.8,155.78,6.41930928]
[1748798004414,19.74313241,155.81,155.78,6.41930928]
[1748798004915,19.74313241,155.81,155.78,22.46758248]
[1748798005116,2.0,155.82,155.78,22.46758248]
[1748798005450,10.63463318,155.83,155.81,19.74313241]
[1748798005629,19.74313241,155.87,155.82,59.54313241]
[1748798006151,19.74313241,155.87,155.83,6.41724956]
[1748798006321,19.74313241,155.86,155.83,6.41724956]
[1748798009761,2.0,155.85,155.83,6.41724956]
[1748798010564,19.74313241,155.84,155.83,6.41724956]
[1748798011437,19.74313241,155.84,155.81,6.41807329]
[1748798011643,19.74313241,155.82,155.81,6.41807329]
[1748798012649,19.74313241,155.82,155.8,6.41835497]
[1748798012850,19.74313241,155.81,155.79,32.418772]
[1748798013050,19.74313241,155.8,155.79,6.418772]
[1748798013250,19.74313241,155.8,155.75,17.44527895]
[1748798013455,19.74313241,155.76,155.75,23.86582469]
[1748798015455,19.74313241,155.77,155.75,23.86582469]
[1748798015772,19.74313241,155.78,155.75,23.86582469]
[1748798020469,19.74313241,155.77,155.75,23.86582469]
[1748798020876,19.74313241,155.78,155.75,39.91718905]
[1748798021487,19.74313241,155.77,155.75,39.91718905]
[1748798023089,19.74313241,155.77,155.75,23.86582469]
[1748798024174,19.74313241,155.76,155.75,23.86582469]
[1748798026566,19.74313241,155.77,155.75,23.86582469]
[1748798029562,19.74313241,155.76,155.75,23.86582469]
[1748798033612,19.74313241,155.76,155.75,17.44527895]
[1748798033910,19.74313241,155.76,155.75,23.86582469]
[1748798038693,19.74313241,155.78,155.75,23.86582469]
[1748798038884,148.9,155.79,155.75,23.86582469]
[1748798038885,19.74313241,155.76,155.75,23.86582469]
[1748798039111,148.9,155.79,155.75,23.86582469]
[1748798039112,148.9,155.79,155.75,39.91718905]
[1748798039318,19.74313241,155.76,155.75,39.91718905]
[1748798041213,19.74313241,155.76,155.75,23.86582469]
[1748798041522,19.74313241,155.76,155.75,17.44527895]
[1748798042893,21.74313241,155.76,155.75,17.44527895]
[1748798046391,41.48626482,155.76,155.75,17.44527895]
[1748798046619,47.90639835,155.76,155.75,17.44527895]
[1748798047696,41.48626482,155.76,155.75,17.44527895]
[1748798052805,2.0,155.76,155.75,17.44527895]
[1748798053032,2.0,155.76,155.75,23.86582469]
[1748798053390,19.74313241,155.79,155.75,39.91718905]
[1748798053617,19.74313241,155.79,155.75,79.69718905]
[1748798054127,12.92519998,155.83,155.75,79.69718905]
[1748798054327,168.64313241,155.79,155.75,79.69718905]
[1748798054496,148.9,155.79,155.75,125.44032146]
[1748798055406,149.8,155.79,155.77,6.41972138]
[1748798059198,0.9,155.79,155.77,6.41972138]
[1748798061326,0.9,155.79,155.76,41.12011623]
[1748798063428,0.9,155.79,155.76,60.86324864]
[1748798067428,19.74313241,155.77,155.76,6.42013353]
[1748798067630,19.74313241,155.77,155.75,23.86566359]
[1748798067840,19.74313241,155.76,155.75,17.44527895]
[1748798070643,20.64313241,155.76,155.75,17.44527895]
[1748798075450,0.9,155.76,155.75,17.44527895]
[1748798075648,19.74313241,155.76,155.75,17.44527895]
[1748798075950,19.74313241,155.76,155.75,23.86582469]
[1748798076339,19.74313241,155.76,155.75,17.44527895]
[1748798077955,21.74313241,155.76,155.75,17.44527895]
[1748798078450,21.74313241,155.76,155.75,23.86582469]
[1748798079133,148.9,155.77,155.75,23.86582469]
[1748798079463,168.64313241,155.77,155.75,23.86582469]
[1748798079642,148.9,155.77,155.75,23.86582469]
[1748798079949,168.64313241,155.77,155.75,23.86582469]
[1748798081360,19.74313241,155.76,155.75,23.86582469]
[1748798083149,19.74313241,155.76,155.75,17.44527895]
[1748798084158,19.74313241,155.76,155.75,23.86582469]
[1748798085750,168.64313241,155.77,155.75,23.86582469]
[1748798086147,169.54313241,155.77,155.75,23.86582469]
[1748798087444,149.8,155.77,155.75,23.86582469]
[1748798087763,169.54313241,155.77,155.75,23.86582469]
[1748798088355,19.74313241,155.76,155.75,23.86582469]
[1748798096261,19.74313241,155.76,155.75,17.44527895]
[1748798100957,148.9,155.77,155.75,23.86582469]
[1748798101171,19.74313241,155.76,155.75,23.86582469]
[1748798102443,19.74313241,155.76,155.75,17.44527895]
[1748798102649,19.74313241,155.76,155.75,23.86572545]
[1748798105246,148.9,155.77,155.75,23.86572545]
[1748798105442,19.74313241,155.76,155.75,23.86572545]
[1748798106763,148.9,155.77,155.75,23.86572545]
[1748798106968,148.9,155.82,155.75,105.65708981]
[1748798107169,19.74313241,155.79,155.75,105.65708981]
[1748798107369,19.74313241,155.76,155.75,89.60572545]
[1748798107664,19.74313241,155.76,155.75,63.60572545]
[1748798107842,19.74313241,155.76,155.75,17.44527895]
[1748798109355,19.74313241,155.76,155.75,23.86582469]
[1748798110855,41.3556,155.81,155.75,23.86582469]
[1748798111057,19.74313241,155.77,155.75,23.86582469]
[1748798111256,19.74313241,155.79,155.76,39.74]
[1748798112352,21.74313241,155.79,155.77,6.41972138]
[1748798113367,19.74313241,155.78,155.76,6.42003788]
[1748798113569,19.74313241,155.78,155.76,46.16003788]
[1748798115258,21.74313241,155.79,155.76,46.16003788]
[1748798115963,148.9,155.82,155.76,46.16003788]
[1748798115964,19.74313241,155.81,155.78,26.0]
[1748798116171,19.74313241,155.8,155.78,26.0]
[1748798116574,19.74313241,155.8,155.79,6.41889723]
[1748798118763,19.74313241,155.81,155.79,6.41889723]
[1748798119277,19.74313241,155.8,155.79,6.41889723]
[1748798119479,19.74313241,155.81,155.79,22.46614031]
[1748798119654,148.9,155.82,155.79,6.41889723]
[1748798119655,19.74313241,155.8,155.79,6.41889723]
[1748798122983,19.74313241,155.8,155.75,27.88527895]
[1748798123168,19.74313241,155.8,155.75,34.30571282]
[1748798123169,19.74313241,155.76,155.75,34.30571282]
[1748798123358,19.74313241,155.76,155.75,74.02571282]
[1748798123560,19.74313241,155.76,155.75,63.58571282]
[1748798123769,19.74313241,155.76,155.75,23.86571282]
[1748798125766,19.74313241,155.76,155.75,17.44527895]
[1748798128683,21.74313241,155.76,155.75,17.44527895]
[1748798129470,47.90639835,155.76,155.75,17.44527895]
[1748798129667,41.48626482,155.76,155.75,17.44527895]
[1748798130285,47.90639835,155.76,155.75,17.44527895]
[1748798131183,19.74313241,155.7,155.69,1.89828114]
[1748798131388,19.74313241,155.7,155.69,8.32119455]
[1748798136397,148.9,155.75,155.69,67.78432696]
[1748798136687,148.9,155.75,155.7,64.39278127]
[1748798136688,2.0,155.74,155.7,64.39278127]
[1748798137003,21.74313241,155.74,155.7,64.39278127]
[1748798137195,2.0,155.74,155.71,19.74313241]
[1748798137381,2.0,155.74,155.73,6.42137032]
[1748798138281,168.64313241,155.75,155.73,6.42137032]
[1748798142383,170.64313241,155.75,155.73,6.42137032]
[1748798145493,150.9,155.75,155.74,39.72]
[1748798145699,148.9,155.75,155.74,39.72]
[1748798147898,148.9,155.75,155.74,46.140958]
[1748798148699,148.9,155.75,155.74,84.53373927]
[1748798149584,148.9,155.75,155.74,64.79060686]
[1748798150192,148.9,155.75,155.74,84.53373927]
[1748798150393,19.74313241,155.78,155.74,100.58613428]
[1748798151690,19.74313241,155.78,155.74,80.84300187]
[1748798152295,19.74313241,155.77,155.76,26.0]
[1748798152598,19.74313241,155.77,155.74,46.140958]
[1748798152983,19.74313241,155.76,155.74,46.140958]
[1748798153198,6.41815872,155.81,155.74,46.120958]
[1748798153399,19.74313241,155.77,155.74,46.120958]
[1748798153591,19.74313241,155.77,155.75,39.7]
[1748798154993,19.74313241,155.78,155.76,6.42013353]
[1748798157204,19.74313241,155.79,155.76,6.42013353]
[1748798158807,19.74313241,155.79,155.76,22.47046737]
[1748798160493,19.74313241,155.78,155.76,22.47046737]
[1748798162293,19.74313241,155.77,155.76,6.42013353]
[1748798162994,19.74313241,155.77,155.7,22.41691439]
[1748798163192,19.74313241,155.73,155.71,39.7]
[1748798164089,19.74313241,155.74,155.71,46.1221951]
[1748798164312,19.74313241,155.76,155.72,38.39278127]
[1748798164507,19.74313241,155.77,155.72,38.39278127]
[1748798165111,19.74313241,155.74,155.71,6.4221951]
[1748798165407,19.74313241,155.74,155.71,46.1221951]
[1748798166002,19.74313241,155.74,155.71,6.4221951]
[1748798166198,19.74313241,155.74,155.71,46.1221951]
[1748798166403,19.74313241,155.73,155.71,46.1221951]
[1748798167606,19.74313241,155.74,155.71,46.1221951]
[1748798170814,19.74313241,155.74,155.71,6.4221951]
[1748798171017,19.74313241,155.74,155.71,46.1021951]
[1748798175217,19.74313241,155.73,155.71,46.1021951]
[1748798179529,19.74313241,155.73,155.71,6.4221951]
[1748798182142,19.74313241,155.72,155.71,6.4221951]
[1748798182716,19.74313241,155.72,155.69,1.89828114]
[1748798182923,19.74313241,155.7,155.69,1.89828114]
[1748798183151,19.74313241,155.71,155.69,8.32130124]
[1748798183818,19.74313241,155.73,155.7,39.68]
[1748798184030,19.74313241,155.74,155.7,59.42313241]
[1748798184327,148.9,155.75,155.7,59.42313241]
[1748798184547,168.64313241,155.75,155.7,59.42313241]
[1748798184937,168.64313241,155.75,155.71,6.4221951]
[1748798185324,19.74313241,155.77,155.73,19.74313241]
[1748798185524,19.74313241,155.78,155.74,39.68]
[1748798186325,6.41836255,155.81,155.74,39.68]
[1748798186326,19.74313241,155.75,155.74,39.68]
[1748798186530,19.74313241,155.75,155.71,48.47768286]
[1748798186741,19.74313241,155.74,155.72,39.68]
[1748798187133,19.74313241,155.74,155.72,46.10145932]
[1748798188324,19.74313241,155.75,155.72,46.10145932]
[1748798189338,19.74313241,155.76,155.72,81.89904844]
[1748798189539,19.74313241,155.77,155.72,81.89904844]
[1748798191247,148.9,155.78,155.72,81.89904844]
[1748798191248,19.74313241,155.76,155.72,62.15591603]
[1748798192534,19.74313241,155.77,155.72,81.89904844]
[1748798193445,19.74313241,155.76,155.72,46.10145932]
[1748798193622,19.74313241,155.75,155.72,46.10145932]
[1748798194232,19.74313241,155.74,155.72,46.10145932]
[1748798195436,19.74313241,155.73,155.72,6.42145932]
[1748798197833,19.74313241,155.73,155.71,46.1021951]
[1748798198032,19.74313241,155.73,155.71,6.4221951]
[1748798198229,19.74313241,155.73,155.71,46.1021951]
[1748798198648,19.74313241,155.74,155.71,46.1021951]
[1748798199648,19.74313241,155.76,155.72,38.39278127]
[1748798199847,168.64313241,155.78,155.73,45.74313241]
[1748798200154,168.64313241,155.78,155.74,39.66]
[1748798200452,19.74313241,155.77,155.74,39.66]
[1748798201856,19.74313241,155.77,155.75,6.42054574]
[1748798202440,19.74313241,155.77,155.73,45.74313241]
[1748798202441,19.74313241,155.76,155.71,39.66]
[1748798202653,19.74313241,155.73,155.71,65.66]
[1748798202848,19.74313241,155.74,155.71,65.66]
[1748798203046,19.74313241,155.74,155.71,39.66]
[1748798203438,19.74313241,155.74,155.72,6.42178268]
[1748798204038,19.74313241,155.74,155.72,46.08178268]
[1748798205760,19.74313241,155.73,155.72,39.66]
[1748798205946,19.74313241,155.73,155.71,72.08202755]
[1748798206341,19.74313241,155.73,155.71,65.66]
[1748798207528,19.74313241,155.73,155.71,26.0]
[1748798207729,19.74313241,155.72,155.69,1.89828114]
[1748798207949,150.4592,155.75,155.69,8.32120011]
[1748798207950,19.74313241,155.73,155.69,8.32120011]
[1748798209854,19.74313241,155.73,155.69,24.37875037]
[1748798210559,19.74313241,155.73,155.69,44.12188278]
[1748798211554,19.74313241,155.73,155.69,54.52188278]
[1748798212563,148.9,155.75,155.72,19.74313241]
[1748798212773,148.9,155.75,155.72,59.40313241]
[1748798214064,148.9,155.75,155.73,19.74313241]
[1748798214370,19.74313241,155.77,155.73,19.74313241]
[1748798214863,19.74313241,155.77,155.74,6.420958]
[1748798215061,19.74313241,155.77,155.75,39.66]
[1748798216757,19.74313241,155.76,155.75,39.66]
[1748798217063,19.74313241,155.76,155.75,46.08054574]
[1748798218595,19.74313241,155.77,155.75,46.08054574]
[1748798220487,19.74313241,155.76,155.75,46.08054574]
[1748798220782,19.74313241,155.76,155.73,39.66]
[1748798220985,19.74313241,155.74,155.73,39.66]
[1748798222483,19.74313241,155.75,155.73,46.08137032]
[1748798222691,19.74313241,155.76,155.73,46.08137032]
[1748798223190,19.74313241,155.75,155.73,46.08137032]
[1748798223570,19.74313241,155.76,155.73,46.08137032]
[1748798224086,19.74313241,155.76,155.74,39.64]
[1748798224290,19.74313241,155.76,155.74,46.06055355]
[1748798224997,148.9,155.78,155.74,46.06055355]
[1748798224998,168.64313241,155.78,155.74,46.06055355]
[1748798225676,168.64313241,155.78,155.74,62.11294856]
[1748798225891,168.64313241,155.78,155.74,88.11294856]
[1748798226475,19.74313241,155.79,155.75,18.64964886]
[1748798226684,19.74313241,155.78,155.75,18.64964886]
[1748798227290,19.74313241,155.76,155.74,72.06055355]
[1748798227480,19.74313241,155.75,155.74,46.06055355]
[1748798228277,19.74313241,155.75,155.74,6.42055355]
[1748798229678,6.41857285,155.8,155.74,6.42055355]
[1748798229888,19.74313241,155.75,155.74,6.42055355]
[1748798230981,19.74313241,155.76,155.74,6.42055355]
[1748798233481,19.74313241,155.78,155.74,26.16368596]
[1748798233685,168.64313241,155.79,155.74,26.16368596]
[1748798235207,168.64313241,155.79,155.74,42.21608097]
[1748798235490,19.74313241,155.76,155.74,6.42055355]
[1748798235694,19.74313241,155.75,155.74,6.42055355]
[1748798236291,19.74313241,155.75,155.74,46.06055355]
[1748798237883,19.74313241,155.75,155.73,39.64]
[1748798238083,19.74313241,155.74,155.72,26.0]
[1748798238297,19.74313241,155.73,155.72,26.0]
[1748798238496,19.74313241,155.73,155.72,32.42178268]
[1748798238811,19.74313241,155.74,155.72,32.42178268]
[1748798239006,1.5587,155.77,155.72,32.42178268]
[1748798239181,19.74313241,155.77,155.72,68.2193718]
[1748798239581,19.74313241,155.76,155.72,68.2193718]
[1748798240909,19.74313241,155.76,155.72,48.47623939]
[1748798241106,16.79865234,155.8,155.72,48.47623939]
[1748798241306,19.74313241,155.75,155.72,48.47623939]
[1748798243705,19.74313241,155.75,155.72,32.42178268]
[1748798243886,19.74313241,155.75,155.73,39.64]
[1748798244398,19.74313241,155.74,155.73,39.64]
[1748798244595,19.74313241,155.74,155.72,32.42178268]
[1748798244799,6.41932349,155.78,155.72,26.0]
[1748798245009,19.74313241,155.73,155.72,32.4216447]
[1748798246616,19.74313241,155.75,155.72,32.4216447]
[1748798247393,19.74313241,155.74,155.72,32.4216447]
[1748798249998,19.74313241,155.73,155.72,32.4216447]
[1748798251603,19.74313241,155.74,155.72,32.4216447]
[1748798255298,19.74313241,155.73,155.71,56.4220949]
[1748798255494,19.74313241,155.73,155.71,82.4220949]
[1748798256631,19.74313241,155.74,155.71,82.4220949]
[1748798256998,19.74313241,155.75,155.71,82.4220949]
[1748798257293,19.74313241,155.75,155.71,72.0420949]
[1748798257817,19.74313241,155.75,155.71,88.09758266]
[1748798262998,148.9,155.77,155.71,107.84071507]
[1748798263321,19.74313241,155.76,155.71,107.84071507]
[1748798268824,19.74313241,155.76,155.73,22.47479612]
[1748798269921,19.74313241,155.76,155.75,6.42054574]
[1748798275313,19.74313241,155.76,155.73,39.62]
[1748798275622,19.74313241,155.75,155.72,6.42178268]
[1748798275821,19.74313241,155.75,155.73,39.62]
[1748798276011,148.9,155.77,155.73,59.36313241]
[1748798276807,148.9,155.77,155.74,6.420958]
[1748798278114,148.9,155.77,155.75,39.6]
[1748798278317,168.64313241,155.77,155.75,39.6]
[1748798278840,168.64313241,155.77,155.76,6.42013353]
[1748798281132,77.5587,155.82,155.76,6.42013353]
[1748798281133,11.9387,155.82,155.76,22.47046737]
[1748798281430,19.74313241,155.79,155.76,22.47046737]
[1748798281748,19.74313241,155.79,155.77,39.6]
[1748798282249,19.74313241,155.8,155.77,39.6]
[1748798282927,13.79949402,155.85,155.79,19.74313241]
[1748798283130,13.79949402,155.85,155.81,22.46325652]
[1748798283341,148.9,155.88,155.82,59.34313241]
[1748798283652,19.74313241,155.89,155.84,19.74313241]
[1748798283853,19.74313241,155.89,155.85,59.34313241]
[1748798285029,19.74313241,155.9,155.86,22.45605029]
[1748798285332,19.74313241,155.92,155.87,38.39278127]
[1748798285522,19.74313241,155.92,155.88,39.6]
[1748798285721,19.74313241,155.92,155.88,59.34313241]
[1748798285930,19.74313241,155.93,155.88,59.34313241]
[1748798287241,19.74313241,155.91,155.89,6.41477965]
[1748798288625,19.74313241,155.92,155.89,6.41477965]
[1748798288946,19.74313241,155.91,155.89,6.41477965]
[1748798291323,21.74313241,155.9,155.86,10.36]
[1748798291525,19.74313241,155.87,155.85,45.99609738]
[1748798292428,19.74313241,155.88,155.85,45.99609738]
[1748798292644,19.74313241,155.87,155.85,45.99609738]
[1748798294743,148.9,155.91,155.85,81.78029491]
[1748798294744,19.74313241,155.89,155.85,81.78029491]
[1748798296343,21.74313241,155.89,155.87,6.41560274]
[1748798297175,2.0,155.89,155.87,6.41560274]
[1748798298555,21.74313241,155.89,155.87,6.41560274]
[1748798300934,2.0,155.89,155.87,6.41560274]
[1748798301148,19.74313241,155.9,155.87,6.41560274]
[1748798301456,168.64313241,155.91,155.88,39.56]
[1748798301829,19.74313241,155.9,155.88,39.56]
[1748798302442,19.74313241,155.9,155.89,6.41477965]
[1748798303856,19.74313241,155.91,155.89,6.41477965]
[1748798304158,19.74313241,155.93,155.89,42.19486119]
[1748798304348,148.9,155.96,155.89,68.19486119]
[1748798304349,19.74313241,155.94,155.89,68.19486119]
[1748798304553,19.74313241,155.94,155.9,19.74313241]
[1748798304758,19.74313241,155.94,155.91,39.56]
[1748798305261,19.74313241,155.95,155.91,39.56]
[1748798305567,19.74313241,155.94,155.91,39.56]
[1748798306555,19.74313241,155.94,155.92,6.4135454]
[1748798308943,1.6642,155.99,155.92,6.4135454]
[1748798309146,19.74313241,155.96,155.92,6.4135454]
[1748798310254,19.74313241,155.95,155.92,6.4135454]
[1748798312351,19.74313241,155.97,155.93,26.0]
[1748798313348,19.74313241,155.97,155.94,6.41272284]
[1748798314249,19.74313241,155.96,155.94,6.41272284]
[1748798315276,19.74313241,155.97,155.94,6.41272284]
[1748798315451,19.74313241,155.97,155.94,22.44452994]
[1748798316849,19.74313241,155.98,155.94,42.18766235]
[1748798317981,19.74313241,155.97,155.95,39.54]
[1748798318960,19.74313241,155.97,155.96,6.41190048]
[1748798319561,19.74313241,155.98,155.96,22.44165169]
[1748798320268,10.0,156.0,155.96,22.44165169]
[1748798320473,29.74313241,156.0,155.96,22.44165169]
[1748798321574,10.0,156.0,155.98,19.74313241]
[1748798321771,10.0,156.0,155.99,38.39278127]
[1748798321949,10.0,156.0,155.99,64.39278127]
[1748798323771,10.0,156.0,155.99,70.80344862]
[1748798330376,10.0,156.0,155.99,44.80344862]
[1748798330564,10.0,156.0,155.99,46.43544862]
[1748798334900,10.0,156.0,155.99,26.69231621]
[1748798335097,10.0,156.0,155.99,44.80344862]
[1748798336660,10.0,156.0,155.99,94.62344862]
[1748798340963,10.0,156.0,155.99,114.36658103]
[1748798341469,10.0,156.0,155.99,115.92028103]
[1748798341878,1.6058,156.12,156.06,26.0]
[1748798342076,19.74313241,156.11,156.07,38.39278127]
[1748798343164,1.6058,156.12,156.07,38.39278127]
[1748798343365,19.74313241,156.11,156.07,38.39278127]
[1748798343786,19.74313241,156.11,156.08,6.40697078]
[1748798348273,19.74313241,156.1,156.08,6.40697078]
[1748798349406,19.74313241,156.11,156.08,6.40697078]
[1748798350166,1.5043,156.15,156.09,18.64964886]
[1748798350373,19.74313241,156.14,156.1,39.48]
[1748798350863,19.74313241,156.14,156.1,59.22313241]
[1748798351065,19.74313241,156.14,156.1,39.48]
[1748798351266,1.5043,156.15,156.12,6.40532923]
[1748798351487,19.74313241,156.16,156.12,6.40532923]
[1748798351790,19.74313241,156.14,156.12,6.40532923]
[1748798353387,19.74313241,156.13,156.11,6.40573954]
[1748798353774,19.74313241,156.13,156.1,49.8]
[1748798353775,19.74313241,156.13,156.1,10.32]
[1748798353960,19.74313241,156.13,156.06,16.01880979]
[1748798353961,19.74313241,156.11,156.08,6.40682312]
[1748798354167,19.74313241,156.11,156.03,16.02186592]
[1748798354168,19.74313241,156.09,156.03,16.02186592]
[1748798354382,19.74313241,156.04,156.02,10.32]
[1748798354669,19.74313241,156.04,156.02,75.78]
[1748798354978,19.74313241,156.03,156.02,16.72928711]
[1748798355173,19.74313241,156.03,156.02,6.40928711]
[1748798356195,19.74313241,156.04,156.02,6.40928711]
[1748798359671,1.611,156.07,156.02,6.40928711]
[1748798359672,19.74313241,156.03,156.02,6.40928711]
[1748798362480,19.74313241,156.05,156.02,6.40928711]
[1748798366692,19.74313241,156.04,156.02,6.40928711]
[1748798368893,19.74313241,156.05,156.02,6.40928711]
[1748798369094,1.611,156.07,156.03,19.74313241]
[1748798369297,0.9,156.06,156.04,64.39278127]
[1748798369494,0.9,156.06,156.05,39.46]
[1748798370004,19.74313241,156.08,156.05,39.46]
[1748798370307,19.74313241,156.08,156.06,6.40779187]
[1748798370807,19.74313241,156.09,156.06,6.40779187]
[1748798371622,1.6538,156.11,156.06,6.40779187]
[1748798371823,19.74313241,156.09,156.06,6.40779187]
[1748798372107,148.9,156.12,156.07,38.39278127]
[1748798372289,168.64313241,156.12,156.09,6.40656031]
[1748798372689,19.74313241,156.11,156.09,6.40656031]
[1748798374391,21.74313241,156.1,156.08,6.40697078]
[1748798375201,2.0,156.1,156.08,65.61010319]
[1748798376417,19.74313241,156.13,156.08,81.62753015]
[1748798376798,19.74313241,156.11,156.08,61.88439774]
[1748798378415,19.74313241,156.09,156.08,6.40697078]
[1748798378596,6.40496966,156.13,156.07,26.0]
[1748798378597,6.40496966,156.13,156.07,6.40728962]